fUSD/lending_fUSD_20260401
["ID","MTS","AMOUNT","RATE_DAILY","PERIOD"]
[419210281,1775019057909,-200.0,0.00035776,2]
[419210282,1775019057920,-200.0,0.00035776,2]
[419210283,1775019057931,-200.0,0.00035776,2]
[419210284,1775019057941,-200.0,0.00035776,2]
[419210285,1775019057951,-200.0,0.00035776,2]
[419210286,1775019057962,-200.0,0.00035776,2]
[419210287,1775019057972,-200.0,0.00035776,2]
[419210288,1775019057982,-200.0,0.00035776,2]
[419210289,1775019057992,-200.0,0.00035776,2]
[419210290,1775019058002,-200.0,0.00035776,2]
[419210291,1775019058012,-200.0,0.00035776,2]
[419210292,1775019058022,-200.0,0.00035776,2]
[419210293,1775019058031,-200.0,0.00035776,2]
[419210294,1775019058041,-200.0,0.00035776,2]
[419210295,1775019058051,-200.0,0.00035776,2]
[419210296,1775019058060,-200.0,0.00035776,2]
[419210297,1775019058070,-200.0,0.00035776,2]
[419210298,1775019058080,-200.0,0.00035776,2]
[419210299,1775019058090,-200.0,0.00035776,2]
[419210300,1775019058100,-200.0,0.00035776,2]
[419210301,1775019058110,-200.0,0.00035776,2]
[419210302,1775019058121,-200.0,0.00035776,2]
[419210303,1775019058131,-200.0,0.00035776,2]
[419210304,1775019058140,-200.0,0.00035776,2]
[419210305,1775019058150,-200.0,0.00035776,2]
[419210306,1775019058160,-200.0,0.00035776,2]
[419210307,1775019058169,-200.0,0.00035776,2]
[419210308,1775019058179,-200.0,0.00035776,2]
[419210309,1775019058189,-200.0,0.00035776,2]
[419210310,1775019058199,-200.0,0.00035776,2]
[419210311,1775019058210,-276.0,0.00035776,2]
[419210312,1775019058219,-500.0,0.00035776,2]
[419210313,1775019058229,-500.0,0.00035776,2]
[419210314,1775019058239,-500.0,0.00035776,2]
[419210315,1775019058248,-500.0,0.00035776,2]
[419210316,1775019058258,-500.0,0.00035776,2]
[419210317,1775019058267,-500.0,0.00035776,2]
[419210318,1775019058277,-500.0,0.00035776,2]
[419210319,1775019058287,-500.0,0.00035776,2]
[419210320,1775019058297,-500.0,0.00035776,2]
[419210321,1775019058308,-500.0,0.00035776,2]
[419210322,1775019058318,-500.0,0.00035776,2]
[419210323,1775019058328,-500.0,0.00035776,2]
[419210324,1775019058338,-500.0,0.00035776,2]
[419210325,1775019058349,-500.0,0.00035776,2]
[419210326,1775019058359,-500.0,0.00035776,2]
[419210327,1775019058369,-500.0,0.00035776,2]
[419210328,1775019058379,-500.0,0.00035776,2]
[419210329,1775019058389,-500.0,0.00035776,2]
[419210330,1775019058400,-500.0,0.00035776,2]
[419210331,1775019058410,-500.0,0.00035776,2]
[419210332,1775019058420,-500.0,0.00035776,2]
[419210333,1775019058430,-500.0,0.00035776,2]
[419210334,1775019058440,-500.0,0.00035776,2]
[419210335,1775019058449,-500.0,0.00035776,2]
[419210336,1775019058459,-500.0,0.00035776,2]
[419210337,1775019058470,-500.0,0.00035776,2]
[419210338,1775019058479,-500.0,0.00035776,2]
[419210339,1775019058489,-500.0,0.00035776,2]
[419210340,1775019058499,-500.0,0.00035776,2]
[419210341,1775019058508,-500.0,0.00035776,2]
[419210342,1775019058518,-500.0,0.00035776,2]
[419210343,1775019058528,-500.0,0.00035776,2]
[419210344,1775019058538,-500.0,0.00035776,2]
[419210345,1775019058549,-500.0,0.00035776,2]
[419210346,1775019058559,-500.0,0.00035776,2]
[419210347,1775019058568,-500.0,0.00035776,2]
[419210348,1775019058578,-500.0,0.00035776,2]
[419210349,1775019058588,-500.0,0.00035776,2]
[419210350,1775019058599,-500.0,0.00035776,2]
[419210351,1775019058608,-500.0,0.00035776,2]
[419210352,1775019058619,-500.0,0.00035776,2]
[419210353,1775019058629,-500.0,0.00035776,2]
[419210354,1775019058638,-500.0,0.00035776,2]
[419210355,1775019058648,-500.0,0.00035776,2]
[419210356,1775019058658,-500.0,0.00035776,2]
[419210357,1775019058668,-500.0,0.00035776,2]
[419210358,1775019058678,-489.0,0.00035776,2]
[419210359,1775019058689,-800.0,0.00035776,13]
[419210360,1775019058698,-800.0,0.00035776,13]
[419210361,1775019058708,-800.0,0.00035776,13]
[419210362,1775019058718,-800.0,0.00035776,13]
[419210363,1775019058728,-800.0,0.00035776,13]
[419210364,1775019058738,-800.0,0.00035776,13]
[419210365,1775019058748,-800.0,0.00035776,13]
[419210366,1775019058761,-800.0,0.00035776,13]
[419210367,1775019058770,-800.0,0.00035776,13]
[419210368,1775019058780,-800.0,0.00035776,13]
[419210369,1775019058790,-800.0,0.00035776,13]
[419210370,1775019058799,-800.0,0.00035776,13]
[419210371,1775019058809,-800.0,0.00035776,13]
[419210372,1775019058819,-800.0,0.00035776,13]
[419210373,1775019058829,-800.0,0.00035776,13]
[419210374,1775019058839,-800.0,0.00035776,13]
[419210375,1775019058849,-800.0,0.00035776,13]
[419210376,1775019058859,-800.0,0.00035776,13]
[419210377,1775019058869,-800.0,0.00035776,13]
[419210378,1775019058878,-800.0,0.00035776,13]
[419210379,1775019058889,-471.0,0.00035776,13]
[419210380,1775019058900,-27980.39,0.000358,2]
[419210381,1775019058910,-993.10976,0.000358,30]
[419210382,1775019058920,-150.0,0.00035833,120]
[419210383,1775019058931,-224.90834083,0.00035933,60]
[419210384,1775019058941,-1009.9,0.00035938,120]
[419210385,1775019058951,-1571.0,0.00035942,11]
[419210386,1775019058961,-150.0,0.00035964,120]
[419210387,1775019058970,-616.22870763,0.00036,120]
[419210388,1775019058981,-1490.70499641,0.00036,120]
[419210389,1775019058990,-268.17305255,0.00036,120]
[419210390,1775019059000,-506.36666556,0.00036,120]
[419210391,1775019059010,-429.65546234,0.00036,120]
[419210392,1775019059020,-403.10901148,0.00036,120]
[419210393,1775019059029,-993.10976,0.00036,30]
[419210394,1775019059039,-3310.3658,0.00036,7]
[419210395,1775019059050,-2000.0,0.00036,30]
[419210396,1775019059061,-205.572827,0.00036,12]
[419210397,1775019059071,-5000.0,0.00036002,10]
[419210398,1775019059406,-2809.0,0.00036039,11]
[419210399,1775019059428,-5000.0,0.00036053,10]
[419210400,1775019059439,-5000.0,0.00036067,10]
[419210401,1775019059449,-5000.0,0.00036099,10]
[419210402,1775019059459,-5000.0,0.00036115,10]
[419210403,1775019059469,-150.0,0.0003612,120]
[419210404,1775019059480,-5000.0,0.00036122,10]
[419210405,1775019059490,-3608.14,0.00036148,10]
[419210406,1775019059500,-5000.0,0.0003616,10]
[419210407,1775019059510,-231.46,0.00036164,120]
[419210408,1775019059520,-5000.0,0.00036175,10]
[419210409,1775019059529,-5000.0,0.00036191,10]
[419210410,1775019059539,-5000.0,0.00036196,10]
[419210411,1775019059549,-9127.68,0.000362,30]
[419210412,1775019059560,-7730.48,0.000362,30]
[419210413,1775019059570,-993.10976,0.000362,30]
[419210414,1775019059581,-17762.6961,0.000362,97]
[419210415,1775019059591,-1597.75,0.00036203,10]
[419210416,1775019059601,-233.66,0.00036228,10]
[419210417,1775019059611,-5000.0,0.00036235,10]
[419210418,1775019059621,-1009.9,0.0003625,120]
[419210419,1775019059631,-676.62,0.00036258,10]
[419210420,1775019059641,-1180.36391778,0.00036262,5]
[419210421,1775019059652,-1714.1,0.00036328,10]
[419210422,1775019059663,-5000.0,0.00036365,10]
[419210423,1775019059673,-2500.0,0.00036372,10]
[419210424,1775019059682,-5000.0,0.00036391,10]
[419210425,1775019059691,-5000.0,0.00036394,10]
[419210426,1775019059701,-2000.0,0.000364,2]
[419210427,1775019059710,-27980.39,0.000364,2]
[419210428,1775019059720,-993.10976,0.000364,30]
[419210429,1775019059729,-1036.0,0.0003641,30]
[419210430,1775019059739,-485.0,0.0003641,30]
[419210431,1775019059749,-151.0,0.00036411,5]
[419210432,1775019059760,-475.0,0.00036426,30]
[419210433,1775019059771,-153.0,0.00036426,30]
[419210434,1775019059781,-1076.0,0.00036426,30]
[419210435,1775019059791,-150.0,0.0003643,2]
[419210436,1775019059800,-472.0,0.00036431,30]
[419210437,1775019059809,-2531.0,0.00036431,30]
[419210438,1775019059819,-5000.0,0.0003649,10]
[419210439,1775019059828,-150.0,0.0003655,120]
[419210440,1775019059838,-150.0,0.0003655,120]
[419210441,1775019059847,-5000.0,0.00036554,10]
[419210442,1775019059857,-1009.9,0.00036562,120]
[419210443,1775019059866,-5000.0,0.00036582,10]
[419210444,1775019059876,-993.10976,0.000366,30]
[419210445,1775019059885,-1121.17,0.00036608,10]
[419210446,1775019059894,-152.0,0.00036611,6]
[419210447,1775019059904,-906.4,0.00036667,10]
[419210448,1775019059914,-5000.0,0.00036668,10]
[419210449,1775019059924,-267.52,0.000367,20]
[419210450,1775019059935,-2583.42,0.000367,20]
[419210451,1775019059945,-205.74,0.000367,20]
[419210452,1775019059955,-5000.0,0.00036709,10]
[419210453,1775019059964,-231.46,0.00036712,120]
[419210454,1775019059975,-374.4,0.0003672,10]
[419210455,1775019059987,-5000.0,0.00036741,10]
[419210456,1775019059997,-358.32,0.00036742,10]
[419210457,1775019060008,-5000.0,0.00036794,10]
[419210458,1775019060018,-7730.48,0.000368,30]
[419210459,1775019060029,-9127.68,0.000368,30]
[419210460,1775019060040,-993.10976,0.000368,30]
[419210461,1775019060050,-156.071741,0.000368,7]
[419210462,1775019060059,-151.0,0.000368,7]
[419210463,1775019060069,-175.691598,0.000368,7]
[419210464,1775019060079,-175.691598,0.000368,7]
[419210465,1775019060090,-175.691598,0.000368,7]
[419210466,1775019060102,-151.0,0.000368,7]
[419210467,1775019060113,-175.691598,0.000368,7]
[419210468,1775019060123,-151.0,0.000368,7]
[419210469,1775019060135,-151.0,0.000368,7]
[419210470,1775019060145,-151.0,0.000368,7]
[419210471,1775019060155,-151.0,0.000368,7]
[419210472,1775019060165,-151.0,0.000368,7]
[419210473,1775019060174,-151.0,0.000368,7]
[419210474,1775019060184,-151.0,0.000368,7]
[419210475,1775019060193,-353.860164,0.000368,7]
[419210476,1775019060203,-196.147739,0.000368,7]
[419210477,1775019060213,-231.716991,0.000368,7]
[419210478,1775019060223,-353.860164,0.000368,7]
[419210479,1775019060232,-231.716991,0.000368,7]
[419210480,1775019060242,-196.147739,0.000368,7]
[419210481,1775019060252,-353.860164,0.000368,7]
[419210482,1775019060261,-231.716991,0.000368,7]
[419210483,1775019060271,-196.147739,0.000368,7]
[419210484,1775019060281,-353.860164,0.000368,7]
[419210485,1775019060291,-196.147739,0.000368,7]
[419210486,1775019060301,-231.716991,0.000368,7]
[419210487,1775019060310,-151.0,0.000368,7]
[419210488,1775019060320,-268.345093,0.000368,7]
[419210489,1775019060329,-151.0,0.000368,7]
[419210490,1775019060338,-268.345093,0.000368,7]
[419210491,1775019060348,-151.0,0.000368,7]
[419210492,1775019060357,-268.345093,0.000368,7]
[419210493,1775019060367,-268.345093,0.000368,7]
[419210494,1775019060378,-613.56,0.00036814,10]
[419210495,1775019060387,-1000.0,0.0003682,2]
[419210496,1775019060397,-1000.0,0.0003682,2]
[419210497,1775019060407,-1000.0,0.0003682,2]
[419210498,1775019060417,-1000.0,0.0003682,2]
[419210499,1775019060426,-1000.0,0.0003682,2]
[419210500,1775019060435,-1000.0,0.00036851,2]
[419210501,1775019060444,-1000.0,0.00036851,2]
[419210502,1775019060454,-1000.0,0.00036851,2]
[419210503,1775019060463,-1000.0,0.00036851,2]
[419210504,1775019060472,-1000.0,0.00036851,2]
[419210505,1775019060482,-1009.9,0.00036875,120]
[419210506,1775019060492,-5000.0,0.00036898,10]
[419210507,1775019060502,-5000.0,0.00036912,10]
[419210508,1775019060511,-5000.0,0.00036922,10]
[419210509,1775019060520,-151.0,0.00036933,60]
[419210510,1775019060529,-150.0,0.0003698,120]
[419210511,1775019060538,-300.0,0.00036986,22]
[419210512,1775019060548,-500.0,0.00036986,120]
[419210513,1775019060558,-27980.39,0.00037,2]
[419210514,1775019060567,-993.10976,0.00037,30]
[419210515,1775019060576,-151.0,0.00037,7]
[419210516,1775019060586,-151.0,0.00037,7]
[419210517,1775019060596,-168.463139,0.00037,7]
[419210518,1775019060605,-191.294335,0.00037,7]
[419210519,1775019060614,-191.294335,0.00037,7]
[419210520,1775019060624,-168.463139,0.00037,7]
[419210521,1775019060633,-168.463139,0.00037,7]
[419210522,1775019060642,-191.294335,0.00037,7]
[419210523,1775019060652,-400.0,0.00037,7]
[419210524,1775019060661,-168.463139,0.00037,7]
[419210525,1775019060670,-191.294335,0.00037,7]
[419210526,1775019060681,-400.0,0.00037,7]
[419210527,1775019060691,-400.0,0.00037,7]
[419210528,1775019060700,-151.0,0.00037,7]
[419210529,1775019060712,-400.0,0.00037,7]
[419210530,1775019060722,-151.0,0.00037,7]
[419210531,1775019060734,-151.0,0.00037,7]
[419210532,1775019060744,-161.805166,0.00037,7]
[419210533,1775019060756,-151.0,0.00037,7]
[419210534,1775019060766,-161.805166,0.00037,7]
[419210535,1775019060777,-161.805166,0.00037,7]
[419210536,1775019060786,-161.805166,0.00037,7]
[419210537,1775019060795,-420.0,0.00037,7]
[419210538,1775019060806,-420.0,0.00037,7]
[419210539,1775019060816,-420.0,0.00037,7]
[419210540,1775019060825,-420.0,0.00037,7]
[419210541,1775019060835,-151.0,0.00037,7]
[419210542,1775019060845,-151.0,0.00037,7]
[419210543,1775019060855,-151.0,0.00037,7]
[419210544,1775019060865,-151.0,0.00037,7]
[419210545,1775019060875,-180.382678,0.00037,7]
[419210546,1775019060884,-1002.59589747,0.00037,7]
[419210547,1775019060894,-825.0,0.00037087,90]
[419210548,1775019060905,-1490.70499641,0.000371,120]
[419210549,1775019060914,-150.0,0.00037136,120]
[419210550,1775019060923,-1009.9,0.00037187,120]
[419210551,1775019060932,-993.10976,0.000372,30]
[419210552,1775019060941,-151.0,0.00037221,7]
[419210553,1775019060950,-151.0,0.00037221,7]
[419210554,1775019060959,-151.0,0.00037221,7]
[419210555,1775019060968,-151.0,0.00037221,7]
[419210556,1775019060978,-151.0,0.00037221,7]
[419210557,1775019060986,-151.0,0.00037221,7]
[419210558,1775019060995,-151.0,0.00037221,7]
[419210559,1775019061004,-151.0,0.00037221,7]
[419210560,1775019061014,-276.419303,0.00037221,7]
[419210561,1775019061024,-151.0,0.00037221,7]
[419210562,1775019061033,-151.0,0.00037221,7]
[419210563,1775019061043,-151.0,0.00037221,7]
[419210564,1775019061052,-151.0,0.00037221,7]
[419210565,1775019061061,-151.0,0.00037221,7]
[419210566,1775019061070,-151.0,0.00037221,7]
[419210567,1775019061079,-151.0,0.00037221,7]
[419210568,1775019061088,-231.46,0.0003726,120]
[419210569,1775019061098,-204.08714195,0.0003726,14]
[419210570,1775019061107,-150.0,0.00037267,120]
[419210571,1775019061117,-267.52,0.000374,10]
[419210572,1775019061126,-2583.42,0.000374,10]
[419210573,1775019061136,-7730.48,0.000374,30]
[419210574,1775019061145,-9127.68,0.000374,30]
[419210575,1775019061154,-993.10976,0.000374,30]
[419210576,1775019061164,-205.74,0.000374,10]
[419210577,1775019061172,-1036.0,0.0003741,30]
[419210578,1775019061182,-485.0,0.0003741,30]
[419210579,1775019061193,-204.24643178,0.00037411,5]
[419210580,1775019061203,-475.0,0.00037426,30]
[419210581,1775019061213,-153.0,0.00037426,30]
[419210582,1775019061223,-1076.0,0.00037426,30]
[419210583,1775019061234,-472.0,0.00037431,30]
[419210584,1775019061243,-2531.0,0.00037431,30]
[419210585,1775019061253,-250.0,0.00037489,7]
[419210586,1775019061263,-250.0,0.00037489,7]
[419210587,1775019061274,-250.0,0.00037489,7]
[419210588,1775019061283,-250.0,0.00037489,7]
[419210589,1775019061293,-1009.9,0.000375,120]
[419210590,1775019061302,-1000.0,0.000375,120]
[419210591,1775019061312,-27980.39,0.000376,2]
[419210592,1775019061321,-993.10976,0.000376,30]
[419210593,1775019061330,-22836.8464,0.000376,102]
[419210594,1775019061339,-150.0,0.00037625,120]
[419210595,1775019061349,-621.0,0.00037636,2]
[419210596,1775019061359,-1045.0,0.00037636,2]
[419210597,1775019061368,-1346.0,0.00037636,2]
[419210598,1775019061377,-3519.0,0.00037636,2]
[419210599,1775019061386,-1263.0,0.00037636,2]
[419210600,1775019061395,-150.0,0.00037636,2]
[419210601,1775019061405,-6016.0,0.00037636,2]
[419210602,1775019061414,-993.10976,0.000378,30]
[419210603,1775019061423,-231.46,0.00037808,120]
[419210604,1775019061432,-150.0,0.0003784,120]
[419210605,1775019061441,-253.666059,0.00037859,7]
[419210606,1775019061451,-439.763631,0.00037859,7]
[419210607,1775019061460,-151.0,0.00037859,7]
[419210608,1775019061470,-253.666059,0.00037859,7]
[419210609,1775019061479,-151.0,0.00037859,7]
[419210610,1775019061488,-439.763631,0.00037859,7]
[419210611,1775019061497,-253.666059,0.00037859,7]
[419210612,1775019061506,-439.763631,0.00037859,7]
[419210613,1775019061516,-235.924091,0.00037859,7]
[419210614,1775019061525,-253.666059,0.00037859,7]
[419210615,1775019061534,-439.763631,0.00037859,7]
[419210616,1775019061543,-235.924091,0.00037859,7]
[419210617,1775019061552,-205.686774,0.00037859,7]
[419210618,1775019061561,-205.686774,0.00037859,7]
[419210619,1775019061571,-235.924091,0.00037859,7]
[419210620,1775019061580,-205.686774,0.00037859,7]
[419210621,1775019061589,-235.924091,0.00037859,7]
[419210622,1775019061599,-205.686774,0.00037859,7]
[419210623,1775019061608,-151.0,0.00037859,7]
[419210624,1775019061617,-151.0,0.00037859,7]
[419210625,1775019061626,-151.0,0.00037859,7]
[419210626,1775019061635,-151.0,0.00037859,7]
[419210627,1775019061644,-425.0,0.00037896,2]
[419210628,1775019061654,-569.25355257,0.00037913,2]
[419210629,1775019061663,-425.0,0.00037921,2]
[419210630,1775019061673,-151.0,0.00037933,60]
[419210631,1775019061682,-5800.0,0.00037975,2]
[419210632,1775019061691,-5800.0,0.00037983,2]
[419210633,1775019061701,-5800.0,0.00037992,2]
[419210634,1775019061711,-1115.157653,0.00037999,30]
[419210635,1775019061720,-151.0,0.00037999,30]
[419210636,1775019061730,-151.0,0.00037999,39]
[419210637,1775019061739,-150.0,0.00038,17]
[419210638,1775019061748,-3000.0,0.00038,30]
[419210639,1775019061758,-3275.0,0.00038,30]
[419210640,1775019061767,-150.0,0.00038,2]
[419210641,1775019061779,-14617.7759686,0.00038,2]
[419210642,1775019061788,-150.0,0.00038,2]
[419210643,1775019061798,-88387.69970662,0.00038,2]
[419210644,1775019061807,-150.0,0.00038,2]
[419210645,1775019061816,-1540.1814632,0.00038,2]
[419210646,1775019061825,-7126.81,0.00038,30]
[419210647,1775019061834,-151.0,0.00038,7]
[419210648,1775019061843,-153.242848,0.00038,7]
[419210649,1775019061853,-153.242848,0.00038,7]
[419210650,1775019061861,-153.242848,0.00038,7]
[419210651,1775019061870,-153.242848,0.00038,7]
[419210652,1775019061879,-151.0,0.00038,7]
[419210653,1775019061888,-151.0,0.00038,7]
[419210654,1775019061898,-151.0,0.00038,7]
[419210655,1775019061908,-151.0,0.00038,7]
[419210656,1775019061917,-151.0,0.00038,7]
[419210657,1775019061927,-151.0,0.00038,7]
[419210658,1775019061936,-151.0,0.00038,7]
[419210659,1775019061944,-151.0,0.00038,7]
[419210660,1775019061954,-151.0,0.00038,7]
[419210661,1775019061962,-205.425419,0.00038,7]
[419210662,1775019061972,-795.07293,0.00038,7]
[419210663,1775019061981,-151.0,0.00038,7]
[419210664,1775019061990,-795.07293,0.00038,7]
[419210665,1775019061999,-151.0,0.00038,7]
[419210666,1775019062008,-151.0,0.00038,7]
[419210667,1775019062018,-795.07293,0.00038,7]
[419210668,1775019062027,-795.07293,0.00038,7]
[419210669,1775019062037,-151.0,0.00038,7]
[419210670,1775019062046,-151.0,0.00038,7]
[419210671,1775019062055,-151.0,0.00038,7]
[419210672,1775019062064,-151.0,0.00038,7]
[419210673,1775019062073,-320.700605,0.00038,7]
[419210674,1775019062082,-151.0,0.00038,7]
[419210675,1775019062091,-151.0,0.00038,7]
[419210676,1775019062101,-151.0,0.00038,7]
[419210677,1775019062111,-320.700605,0.00038,7]
[419210678,1775019062120,-283.450563,0.00038,7]
[419210679,1775019062130,-320.700605,0.00038,7]
[419210680,1775019062140,-283.450563,0.00038,7]
[419210681,1775019062149,-151.0,0.00038,7]
[419210682,1775019062159,-320.700605,0.00038,7]
[419210683,1775019062168,-283.450563,0.00038,7]
[419210684,1775019062177,-151.0,0.00038,7]
[419210685,1775019062186,-283.450563,0.00038,7]
[419210686,1775019062195,-300.0,0.00038,5]
[419210687,1775019062204,-151.0,0.00038,7]
[419210688,1775019062214,-151.0,0.00038,7]
[419210689,1775019062223,-151.0,0.00038,7]
[419210690,1775019062232,-151.0,0.00038,7]
[419210691,1775019062241,-151.0,0.00038,7]
[419210692,1775019062250,-5800.0,0.00038,2]
[419210693,1775019062259,-200.0,0.00038,15]
[419210694,1775019062268,-6216.24025767,0.00038006,2]
[419210695,1775019062277,-150.0,0.00038034,30]
[419210696,1775019062286,-523.91,0.00038034,30]
[419210697,1775019062296,-150.0,0.00038034,30]
[419210698,1775019062305,-1750.69,0.00038034,30]
[419210699,1775019062315,-150.0,0.00038034,30]
[419210700,1775019062324,-151.0,0.00038034,7]
[419210701,1775019062333,-499.964857,0.00038034,7]
[419210702,1775019062342,-1002.143556,0.00038034,7]
[419210703,1775019062351,-499.964857,0.00038034,7]
[419210704,1775019062360,-1002.143556,0.00038034,7]
[419210705,1775019062370,-151.0,0.00038034,7]
[419210706,1775019062379,-499.964857,0.00038034,7]
[419210707,1775019062388,-151.0,0.00038034,7]
[419210708,1775019062397,-839.001389,0.00038034,7]
[419210709,1775019062407,-1002.143556,0.00038034,7]
[419210710,1775019062416,-499.964857,0.00038034,7]
[419210711,1775019062426,-1247.861813,0.00038034,7]
[419210712,1775019062435,-177.16942,0.00038034,7]
[419210713,1775019062445,-151.0,0.00038034,7]
[419210714,1775019062454,-839.001389,0.00038034,7]
[419210715,1775019062463,-1002.143556,0.00038034,7]
[419210716,1775019062472,-1247.861813,0.00038034,7]
[419210717,1775019062481,-151.0,0.00038034,7]
[419210718,1775019062491,-839.001389,0.00038034,7]
[419210719,1775019062500,-151.0,0.00038034,7]
[419210720,1775019062509,-892.253268,0.00038034,7]
[419210721,1775019062520,-1247.861813,0.00038034,7]
[419210722,1775019062530,-1541.735085,0.00038034,7]
[419210723,1775019062540,-151.0,0.00038034,7]
[419210724,1775019062549,-839.001389,0.00038034,7]
[419210725,1775019062558,-892.253268,0.00038034,7]
[419210726,1775019062568,-1247.861813,0.00038034,7]
[419210727,1775019062578,-151.0,0.00038034,7]
[419210728,1775019062587,-1541.735085,0.00038034,7]
[419210729,1775019062597,-892.253268,0.00038034,7]
[419210730,1775019062607,-151.0,0.00038034,7]
[419210731,1775019062616,-151.0,0.00038034,7]
[419210732,1775019062626,-167.533581,0.00038034,7]
[419210733,1775019062636,-1541.735085,0.00038034,7]
[419210734,1775019062645,-892.253268,0.00038034,7]
[419210735,1775019062655,-175.599481,0.00038034,7]
[419210736,1775019062664,-151.0,0.00038034,7]
[419210737,1775019062674,-167.533581,0.00038034,7]
[419210738,1775019062683,-1541.735085,0.00038034,7]
[419210739,1775019062693,-175.599481,0.00038034,7]
[419210740,1775019062703,-167.533581,0.00038034,7]
[419210741,1775019062713,-236.911326,0.00038034,7]
[419210742,1775019062722,-175.599481,0.00038034,7]
[419210743,1775019062731,-4589.596736,0.00038034,7]
[419210744,1775019062740,-167.533581,0.00038034,7]
[419210745,1775019062750,-175.599481,0.00038034,7]
[419210746,1775019062759,-236.911326,0.00038034,7]
[419210747,1775019062769,-4589.596736,0.00038034,7]
[419210748,1775019062778,-2959.597666,0.00038034,7]
[419210749,1775019062788,-236.911326,0.00038034,7]
[419210750,1775019062797,-4589.596736,0.00038034,7]
[419210751,1775019062806,-151.0,0.00038034,7]
[419210752,1775019062816,-2959.597666,0.00038034,7]
[419210753,1775019062825,-236.911326,0.00038034,7]
[419210754,1775019062834,-4589.596736,0.00038034,7]
[419210755,1775019062843,-151.0,0.00038034,7]
[419210756,1775019062852,-2959.597666,0.00038034,7]
[419210757,1775019062862,-151.0,0.00038034,7]
[419210758,1775019062871,-2959.597666,0.00038034,7]
[419210759,1775019062880,-337.50102,0.00038034,7]
[419210760,1775019062889,-337.50102,0.00038034,7]
[419210761,1775019062899,-337.50102,0.00038034,7]
[419210762,1775019062908,-151.0,0.00038034,7]
[419210763,1775019062918,-337.50102,0.00038034,7]
[419210764,1775019062928,-151.0,0.00038034,7]
[419210765,1775019062937,-698.819389,0.00038034,7]
[419210766,1775019062947,-2349.593397,0.00038034,7]
[419210767,1775019062957,-698.819389,0.00038034,7]
[419210768,1775019062968,-2349.593397,0.00038034,7]
[419210769,1775019062978,-698.819389,0.00038034,7]
[419210770,1775019062988,-2349.593397,0.00038034,7]
[419210771,1775019062998,-698.819389,0.00038034,7]
[419210772,1775019063008,-2349.593397,0.00038034,7]
[419210773,1775019063018,-235.695097,0.00038034,7]
[419210774,1775019063028,-235.695097,0.00038034,7]
[419210775,1775019063038,-235.695097,0.00038034,7]
[419210776,1775019063047,-235.695097,0.00038034,7]
[419210777,1775019063057,-151.0,0.00038034,7]
[419210778,1775019063066,-151.0,0.00038034,7]
[419210779,1775019063077,-387.268935,0.00038034,7]
[419210780,1775019063087,-387.268935,0.00038034,7]